[Event "Croatian Team Cup Final 2022"]
[Site "Vodice"]
[Date "2022.05.19"]
[Round "2.16"]
[White "Saric, Luka"]
[Black "Sekelja, Marko"]
[Result "1-0"]
[ECO "D30"]
[WhiteElo "2169"]
[BlackElo "2102"]
[Annotator "TA"]
[PlyCount "43"]
[EventDate "2022.05.18"]
[EventType "team-tourn"]
[EventCountry "CRO"]
[SourceTitle "playchess.com"]
[Source "ChessBase"]
[SourceQuality "1"]
[TimeControl "40/5400+30:1800+30"]

{[%evp 9,43,1,47,53,92,79,203,204,208,216,204,203,368,381,372,411,514,511,696,675,696,668,762,751,915,912,958,935,1392,1376,1356,1314,29983,29983,6395,5140]} 1. Nf3 {[%emt 0:00:05]} d5 {[%emt 0:00:06]} 2. e3 {[%emt 0:00:18]} c5 {[%emt 0:01:08]} 3. c4 {[%emt 0:09:20]} e6 {[%emt 0:05:24]} 4. cxd5 {[%emt 0:05:03]} exd5 {[%emt 0:00:30]} 5. d4 {[%emt 0:05:30]} c4 {[%emt 0:06:59]} (5... Nc6 $11) 6. b3 $14 {[%emt 0:06:22] D30: Queen's Gambit Declined: Systems without Nc3.} b5 {[%emt 0:09:26] [#]} 7. a4 $1 {[%emt 0:15:39]} Qa5+ {[%emt 0:09:13]} (7... Bf5 $16 {was necessary.}) 8. Bd2 $18 {[%emt 0:00:48][%cal Bc1d2,Bd2b4,Bb4a3][%mdl 32] White is clearly better.} Bb4 {[%emt 0:00:06] [#]} 9. axb5 $146 {[%emt 0:12:51]} ({Predecessor:} 9. Qc2 Nf6 10. Nc3 Bxc3 11. Bxc3 b4 12. Bd2 c3 13. Bc1 Ba6 14. Bxa6 Nxa6 15. O-O {½-½ (48) Stephanus,J (1959)-Bianchi,T (1653) Metz 2011}) 9... Qxa1 {[%emt 0:06:53]} 10. Bxb4 {[%emt 0:00:05] aiming for Qc2.} Qb2 {[%emt 0:00:21] Inhibits Qc2.} (10... a6) 11. Nfd2 {[%emt 0:03:37]} Bf5 {[%emt 0:37:40]} 12. e4 {[%emt 0:04:07][%mdl 64] Deflection} Bxe4 {[%emt 0:02:58]} 13. Nxe4 {[%emt 0:00:15]} dxe4 {[%emt 0:00:10]} 14. Bxc4 {[%emt 0:00:27]} Nd7 {[%emt 0:09:29]} 15. Ba3 {[%emt 0:04:47] This bishop pair is nice.} Qa1 {[%emt 0:03:00]} 16. O-O {[%emt 0:06:05]} Ngf6 {[%emt 0:02:14]} 17. Qd2 {[%emt 0:04:01]} Nb6 {[%emt 0:02:28]} 18. Qb4 {[%emt 0:04:25][%csl Ga3][%cal Rb4e7]} Nbd5 {[%emt 0:00:12] Inhibits Qe7+.} 19. Bxd5 {[%emt 0:02:25]} Nxd5 {[%emt 0:00:06]} 20. Qd6 {[%emt 0:02:34] Threatening mate with Qc6+.} Rd8 {[%emt 0:01:35]} 21. Qe5+ {[%emt 0:00:11]} Kd7 {[%emt 0:00:23]} 22. Qxd5+ {[%emt 0:00:07] Black got outplayed after the opening.  Weighted Error Value: White=0.03 (flawless) /Black=1.22} 1-0

[Event "Croatian Team Cup Final 2022"]
[Site "Vodice"]
[Date "2022.05.19"]
[Round "2.17"]
[White "Lalic, Bogdan"]
[Black "Skuhala, Jernej"]
[Result "1/2-1/2"]
[ECO "E05"]
[WhiteElo "2411"]
[BlackElo "2378"]
[Annotator "TA"]
[PlyCount "39"]
[EventDate "2022.05.18"]
[EventType "team-tourn"]
[EventCountry "CRO"]
[SourceTitle "playchess.com"]
[Source "ChessBase"]
[SourceQuality "1"]
[TimeControl "40/5400+30:1800+30"]

{[%evp 22,24,25,17,54]} 1. d4 {[%emt 0:02:57]} Nf6 {[%emt 0:00:03]} 2. c4 {[%emt 0:00:07]} e6 {[%emt 0:00:01]} 3. Nf3 {[%emt 0:00:09]} d5 {[%emt 0:00:02]} 4. g3 {[%emt 0:00:13]} Be7 {[%emt 0:00:01]} 5. Bg2 {[%emt 0:00:11]} O-O {[%emt 0:00:02]} 6. O-O {[%emt 0:00:18]} dxc4 {[%emt 0:00:02]} 7. Qc2 {[%emt 0:00:10]} a6 {[%emt 0:00:01]} 8. a4 {[%emt 0:00:12]} Bd7 {[%emt 0:00:02][%cal Bc8d7,Bd7c6,Bc6f3][%mdl 32]} 9. Qxc4 {[%emt 0:00:26]} Bc6 {[%emt 0:00:02]} 10. Bf4 {[%emt 0:00:25]} a5 {[%emt 0:00:49]} 11. Nc3 {[%emt 0:00:15]} Na6 {[%emt 0:00:31]} 12. Rac1 {[%emt 0:00:28]} Bxf3 {[%emt 0:02:14] [#] E05: Open Catalan: 5 Nf3 Be7.} {Predecessor:} 13. Bxf3 $146 c6 14. e4 Nd7 15. Rfd1 Bg5 16. Bxg5 Qxg5 17. e5 Qe7 18. Qe2 Nb6 19. Be4 Nb4 20. Bb1 {1-0 (35) Nguyen,A (2484)-Aravindh,C (2599) Dubai 2019} 1/2-1/2

[Event "Croatian Team Cup Final 2022"]
[Site "Vodice"]
[Date "2022.05.19"]
[Round "2.18"]
[White "Segovic, Goran"]
[Black "Zaja, Ivan"]
[Result "0-1"]
[ECO "B80"]
[WhiteElo "2291"]
[BlackElo "2449"]
[Annotator "TA"]
[PlyCount "104"]
[EventDate "2022.05.18"]
[EventType "team-tourn"]
[EventCountry "CRO"]
[SourceTitle "playchess.com"]
[Source "ChessBase"]
[SourceQuality "1"]
[TimeControl "40/5400+30:1800+30"]

{[%evp 12,104,29,9,41,22,55,29,8,5,26,0,0,9,18,0,0,-9,0,0,0,-19,-20,-12,0,0,0,-13,0,-28,-11,-150,-54,-48,-52,-54,-62,-54,-58,-191,30,24,31,31,40,36,43,43,46,24,54,25,66,61,71,82,80,9,258,255,265,258,258,241,243,0,0,0,162,27,156,26,29,-5,-8,-7,-6,-19,-19,-33,-35,-31,-6,-6,0,0,0,0,0,0,0,-8,-7,-10,-8]} 1. e4 {[%emt 0:02:34]} c5 {[%emt 0:00:14]} 2. Nf3 {[%emt 0:00:34]} d6 {[%emt 0:00:06]} 3. d4 {[%emt 0:00:26]} cxd4 {[%emt 0:00:05]} 4. Nxd4 {[%emt 0:00:04]} Nf6 {[%emt 0:00:05]} 5. Nc3 {[%emt 0:00:05]} a6 {[%emt 0:00:10]} 6. Be3 {[%emt 0:00:42]} e6 {[%emt 0:02:04]} 7. f3 {[%emt 0:04:06]} h5 {[%emt 0:02:15] B80: Sicilian Scheveningen: 6 g3 and 6 Be3, including English Attack.} 8. Qd2 {[%emt 0:01:44]} b5 {[%emt 0:00:24]} 9. a3 {[%emt 0:04:37] 9.a4 is the modern continuation.} Bb7 {[%emt 0:01:56] White has an edge.} 10. O-O-O {[%emt 0:02:56]} Nbd7 {[%emt 0:00:32][%cal Bb8d7,Bd7e5,Be5d3][%mdl 32]} 11. Kb1 {[%emt 0:08:56]} Be7 {[%emt 0:07:27]} 12. Bd3 {[%emt 0:07:25] [#]} Ne5 $146 {[%emt 0:02:12]} ({Predecessor:} 12... Rc8 13. Nb3 Nc5 14. Nxc5 dxc5 15. e5 Nd5 16. Be4 Nxc3+ 17. Qxc3 Qc7 18. Bxb7 Qxb7 {1-0 (58) Michalik,P (2568)-Blohberger,F (2503) Warsaw 2021}) 13. h3 {[%emt 0:08:29]} h4 {[%emt 0:04:08]} 14. Bf2 {[%emt 0:11:54]} Rc8 {[%emt 0:06:02]} 15. Rhe1 {[%emt 0:04:12]} Nh5 {[%emt 0:36:10]} 16. Nce2 {[%emt 0:05:51]} d5 {[%emt 0:01:46]} 17. exd5 {[%emt 0:03:03]} Nxd3 {[%emt 0:00:39]} 18. Qxd3 {[%emt 0:05:33]} Qxd5 {[%emt 0:00:57]} 19. Qe3 {[%emt 0:06:09]} Qc5 {[%emt 0:10:15]} 20. c3 {[%emt 0:06:17]} O-O {[%emt 0:05:43]} 21. f4 {[%emt 0:01:48] Inhibits Bg5.} (21. Nc2 $11) 21... Qd5 {[%emt 0:03:15] Black is more active.} ({Better is} 21... Qc4 $17 {Strongly threatening ...Bf6.} 22. f5 Nf6 23. Bxh4 Nd5) 22. g4 $15 {[%emt 0:02:06]} hxg3 {[%emt 0:01:07]} 23. Nxg3 {[%emt 0:00:29]} Nxg3 {[%emt 0:00:25]} 24. Qxg3 {[%emt 0:00:44][%cal Of4f5]} Bf6 {[%emt 0:01:13]} 25. f5 {[%emt 0:02:58]} ({White should try} 25. Qg4 $15 Qg2 26. Re2) 25... Rfd8 $2 {[%emt 0:09:44]} (25... exf5 $19 {Hoping for ...Rfe8.} 26. Ne6 Qb3 $1) 26. fxe6 $11 {[%emt 0:01:18]} fxe6 {[%emt 0:00:06]} 27. Qg4 {[%emt 0:02:26]} Qg2 {[%emt 0:02:21]} 28. Qxe6+ {[%emt 0:01:04]} Kh8 {[%emt 0:00:01]} 29. Qf5 {[%emt 0:01:27]} Rd5 {[%emt 0:01:06]} 30. Qf4 {[%emt 0:00:29]} Rh5 {[%emt 0:01:04]} 31. Re6 {[%emt 0:02:01]} Qg6+ {[%emt 0:00:18]} 32. Ka1 {[%emt 0:00:43][%cal Of2h4]} Rxh3 {[%emt 0:00:58]} 33. Rg1 {[%emt 0:00:33]} Qh6 {[%emt 0:00:38]} 34. Qg4 {[%emt 0:00:44]} (34. Qd6 $16 Rh1 35. Ree1 Rxg1 36. Rxg1) 34... Rh1 $2 {[%emt 0:00:38]} (34... Qh5 $11) 35. Ree1 $1 $18 {[%emt 0:00:13]} Rxg1 {[%emt 0:01:01]} 36. Rxg1 {[%emt 0:00:03]} Rd8 {[%emt 0:00:20] [#] Inhibits Qd7.} 37. Nf5 $1 {[%emt 0:00:41]} Qh7 {[%emt 0:00:18]} 38. Nh4 $2 {[%emt 0:01:15]} (38. Bd4 $18 {Threatens to win with Bxf6.} Bxd4 39. cxd4 (39. Nxd4 Bd5 $16)) 38... Qe4 $11 {[%emt 0:01:01] White must now prevent ...Qxg4.} 39. Qh5+ {[%emt 0:00:45]} Qh7 $2 {[%emt 0:00:32]} (39... Kg8 $1 $11 {and Black has nothing to worry.} 40. Ng6 Qd5 41. Qh8+ Kf7) 40. Ng6+ $18 {[%emt 0:00:00]} Kg8 {[%emt 0:00:00] [#]} 41. Qf5 {[%emt 0:03:33]} (41. Qg4 $1 $16 {[%cal Rg4e6]} Bc8 42. Qe4) 41... Qh2 $1 $11 {[%emt 0:07:29]} 42. Re1 {[%emt 0:10:27]} Bc8 $1 {[%emt 0:01:38] This bishop pair is nice.} 43. Qf3 {[%emt 0:01:14]} Qh3 {[%emt 0:04:02]} 44. Qe4 {[%emt 0:02:06] And now Bb6 would win.} Qg4 $1 {[%emt 0:03:53] aiming for ...Qxe4.} 45. Qxg4 {[%emt 0:15:26]} (45. Ne7+ {is interesting.} Kf7 46. Nxc8 Qxe4 47. Rxe4 Rxc8 48. Kb1) 45... Bxg4 {[%emt 0:00:21]} 46. Ne5 {[%emt 0:01:26]} Bxe5 {[%emt 0:04:57]} 47. Rxe5 $15 {[%emt 0:00:12][%mdl 4096] Endgame KRB-KRB. The position is equal.} Rd1+ {[%emt 0:00:02]} 48. Ka2 {[%emt 0:00:20]} Kf7 {[%emt 0:00:10] ...Be6+ is the strong threat.} 49. Kb3 {[%emt 0:01:21]} Rd2 {[%emt 0:01:32]} 50. Bd4 {[%emt 0:00:38]} Be6+ {[%emt 0:03:06]} 51. Kb4 {[%emt 0:00:14]} Rxb2+ {[%emt 0:00:07]} 52. Ka5 {[%emt 0:00:12]} Bc4 {[%emt 0:00:22][%mdl 32768] Weighted Error Value: White=0.28 (precise) /Black=0.28 (precise) . Loss on time!?} 0-1

[Event "Croatian Team Cup Final 2022"]
[Site "Vodice"]
[Date "2022.05.19"]
[Round "2.19"]
[White "Loncar, Robert"]
[Black "Zadravec, Matija"]
[Result "1-0"]
[ECO "E20"]
[WhiteElo "2370"]
[BlackElo "2263"]
[Annotator "TA"]
[PlyCount "73"]
[EventDate "2022.05.18"]
[EventType "team-tourn"]
[EventCountry "CRO"]
[SourceTitle "playchess.com"]
[Source "ChessBase"]
[SourceQuality "1"]
[TimeControl "40/5400+30:1800+30"]

{[%evp 23,73,20,25,18,21,29,42,26,28,3,27,12,29,-38,-13,-53,-24,-142,-131,-135,-55,-109,-70,-146,-107,-105,-61,-76,-61,-106,-101,-219,-221,-311,-299,-514,-516,-712,-715,-707,2047,1913,29994,29995,29995,29995,29995,29996,29997,6275,29998,29999]} 1. d4 {[%emt 0:14:45]} Nf6 {[%emt 0:00:06]} 2. c4 {[%emt 0:00:06]} e6 {[%emt 0:00:03]} 3. Nf3 {[%emt 0:00:07]} Bb4+ {[%emt 0:00:04]} 4. Nc3 {[%emt 0:00:05]} c5 {[%emt 0:00:18]} 5. g3 {[%emt 0:03:23]} cxd4 {[%emt 0:00:06]} 6. Nxd4 {[%emt 0:00:11]} Ne4 {[%emt 0:00:05]} 7. Qd3 {[%emt 0:10:47]} Qa5 {[%emt 0:09:25]} 8. Nb3 {[%emt 0:21:52]} Qf5 {[%emt 0:13:11]} 9. Qe3 {[%emt 0:03:18]} Nxc3 {[%emt 0:05:32]} 10. bxc3 {[%emt 0:00:09]} Be7 {[%emt 0:00:12]} 11. Bg2 {[%emt 0:01:50]} Nc6 {[%emt 0:04:08]} 12. O-O {[%emt 0:02:01]} O-O {[%emt 0:02:29]} 13. Rd1 {[%emt 0:12:10] E20: Nimzo-Indian: 4 g3 and 4 f3.} b6 {[%emt 0:12:36]} 14. Nd4 {[%emt 0:05:27]} Nxd4 {[%emt 0:01:09]} 15. cxd4 {[%emt 0:00:26] White is slightly better.} (15. Bxa8 Nc2 16. Qe4 Qxe4 17. Bxe4 Nxa1 $17) 15... Rb8 {[%emt 0:00:33] [#]} 16. Qf4 $146 {[%emt 0:09:14]} ({Predecessor:} 16. Ba3 d6 17. Qb3 Bb7 18. d5 e5 19. Qa4 Ra8 20. e4 Qf6 21. Rf1 Bc8 22. f4 exf4 {½-½ (31) Bourquin,P (2352)-Bendig,F (2300) IECG email 2002}) 16... Qc2 {[%emt 0:07:08]} 17. Rd2 {[%emt 0:06:22]} Qc3 {[%emt 0:00:02]} 18. Rb1 {[%emt 0:01:07]} (18. Qxb8 Qxa1 19. Rd1 Qxa2 $15) (18. Bb2 $11 g5 19. Bxc3 gxf4 20. gxf4) 18... Ba6 {[%emt 0:08:49][%cal Bc8a6,Ba6c4,Bc4d3,Bd3e4][%mdl 32]} 19. d5 {[%emt 0:05:47]} e5 {[%emt 0:05:50]} 20. Qg4 {[%emt 0:00:31]} (20. Qf5 $11 {remains equal.} d6 21. Qd7 (21. Be4 g6 $17)) 20... f5 $17 {[%emt 0:03:14]} (20... Qxc4 $6 21. Qxd7 Bb4 22. Rd1 $11) 21. Qh5 {[%emt 0:00:02]} d6 {[%emt 0:00:25]} (21... Qxc4 $2 22. d6 Qc5 23. dxe7 Qxe7 24. e4 $18) (21... Bb4 $17 22. a3 Bc5) 22. Rd1 {[%emt 0:00:24]} (22. e4 $1 $15) 22... Bxc4 {[%emt 0:05:54]} 23. Bd2 {[%emt 0:01:01]} (23. e4 $1 $15) 23... Qa3 {[%emt 0:01:03]} 24. e4 {[%emt 0:00:31]} g6 {[%emt 0:02:46]} 25. Qh6 {[%emt 0:00:02]} Bd3 $36 {[%emt 0:00:14][%mdl 2048] Black fights for an advantage.} 26. Rb3 {[%emt 0:01:07]} Qa4 {[%emt 0:00:02]} 27. Rc1 {[%emt 0:00:40]} (27. exf5 $17 Bxf5 28. Ra1) 27... Bxe4 $19 {[%emt 0:01:53]} (27... Bc4 $2 28. Rb4 Qxa2 29. Rbxc4 $18) 28. Rb4 {[%emt 0:00:02]} ({Of course not} 28. Rc7 Rf7 29. Bb4 Qxa2 $19) (28. h4 {was worth a try.} Rfc8 29. h5 Rxc1+ 30. Bxc1) 28... Qxa2 {[%emt 0:02:14] [#] White must now prevent ...Bxg2.} ({Not} 28... Qd7 29. Bxe4 fxe4 30. Qe3 $17) 29. Rc7 $2 {[%emt 0:01:00]} (29. Bxe4 fxe4 30. Rbc4 (30. Rc7 $2 Rf7 $19)) 29... Rf7 {[%emt 0:02:25]} 30. Rxe7 {[%emt 0:00:28]} Qa1+ {[%emt 0:03:41]} 31. Bc1 {[%emt 0:00:27]} Rc8 $4 {[%emt 0:01:40][%mdl 8192] [#]} (31... Rxe7 $19 32. Bxe4 fxe4) 32. Rc4 $3 $18 {[%emt 0:00:02][%mdl 512]} Qa6 {[%emt 0:05:43]} (32... Qxc1+ 33. Qxc1) 33. Rxf7 {[%emt 0:00:05]} Kxf7 {[%emt 0:00:08]} 34. Rxc8 {[%emt 0:00:20]} Qxc8 {[%emt 0:00:30]} 35. Qxh7+ {[%emt 0:00:01]} Ke8 {[%emt 0:01:19]} 36. Qxg6+ {[%emt 0:00:13]} (36. Qg8+ $142 Ke7 37. Bg5+ Kd7 38. Qf7#) 36... Kd7 {[%emt 0:00:04]} 37. Qf7+ {[%emt 0:00:08] What a bad dream for Black.  Weighted Error Value: White=0.58/Black=0.55} 1-0

[Event "Croatian Team Cup Final 2022"]
[Site "Vodice"]
[Date "2022.05.19"]
[Round "2.20"]
[White "Havas, Janko"]
[Black "Sale, Srdjan"]
[Result "0-1"]
[ECO "A41"]
[WhiteElo "2162"]
[BlackElo "2356"]
[Annotator "TA"]
[PlyCount "84"]
[EventDate "2022.05.18"]
[EventType "team-tourn"]
[EventCountry "CRO"]
[SourceTitle "playchess.com"]
[Source "ChessBase"]
[SourceQuality "1"]
[TimeControl "40/5400+30:1800+30"]

{[%evp 9,84,0,0,-2,0,-12,14,-20,10,9,8,11,6,9,2,-4,0,0,0,0,0,0,-13,-31,-23,-30,-20,-39,-28,-50,-48,-48,-46,-77,-44,-41,-35,-49,-36,-39,-35,-191,-79,-84,-75,-75,-64,-133,-72,-74,-63,-73,-43,-42,-44,-54,0,-114,-66,-111,-47,-49,-17,-48,-45,-383,-370,-375,-381,-362,-361,-401,-411,-695,-690,-685,-683]} 1. d4 {[%emt 0:00:30]} g6 {[%emt 0:00:30]} 2. Nc3 {[%emt 0:00:24]} Bg7 {[%emt 0:01:11]} 3. Bf4 {[%emt 0:02:29]} d6 {[%emt 0:00:22]} 4. Nf3 {[%emt 0:02:25]} a6 {[%emt 0:02:06]} 5. h3 {[%emt 0:05:44]} Nd7 {[%emt 0:00:52]} 6. e3 {[%emt 0:02:27] A41: 1 d4 d6: Tartakower System and Modern Defence.} Ngf6 {[%emt 0:00:49]} 7. Be2 {[%emt 0:01:40] [#]} c5 $146 {[%emt 0:00:27]} ({Predecessor:} 7... b5 8. a3 Bb7 9. Qd2 O-O 10. O-O c5 11. Rad1 Rc8 12. Bh2 Nb6 13. Qe1 cxd4 14. Nxd4 {0-1 (39) Koshil,T (2229)-Gorbatov,A (2387) Rodatychi 2006}) 8. O-O {[%emt 0:04:03] The position is equal.} O-O {[%emt 0:00:41]} 9. a4 {[%emt 0:04:03]} cxd4 {[%emt 0:00:41]} 10. exd4 {[%emt 0:00:16]} b6 {[%emt 0:00:15]} 11. Qd2 {[%emt 0:08:03]} Re8 {[%emt 0:00:10]} 12. Ng5 {[%emt 0:06:37]} Bb7 {[%emt 0:03:53]} 13. Bc4 {[%emt 0:04:17]} d5 {[%emt 0:05:03]} 14. Bb3 {[%emt 0:00:28]} Rc8 {[%emt 0:02:13]} 15. Rad1 {[%emt 0:04:15]} Nb8 {[%emt 0:05:24]} 16. Bxb8 {[%emt 0:11:56]} Rxb8 {[%emt 0:00:06]} 17. Nf3 {[%emt 0:00:06]} e6 {[%emt 0:03:23]} 18. Ne5 {[%emt 0:03:47]} Rc8 {[%emt 0:00:14]} 19. f3 {[%emt 0:06:43]} Re7 {[%emt 0:01:24]} 20. Ne2 {[%emt 0:01:21]} Ne8 {[%emt 0:00:33][%cal Bf6e8,Be8d6,Bd6f5][%mdl 32]} 21. h4 {[%emt 0:04:00][%cal Oh4h5]} Rec7 {[%emt 0:04:34]} 22. h5 {[%emt 0:01:04]} Nd6 {[%emt 0:00:16]} 23. Qf4 {[%emt 0:01:42]} Nf5 {[%emt 0:03:06]} 24. hxg6 {[%emt 0:02:05]} hxg6 {[%emt 0:00:58] And now ...Bh6 would win.} 25. Ng4 {[%emt 0:00:22] Inhibits Bh6.} (25. Qd2 $1 $15) 25... Qd6 {[%emt 0:07:37]} (25... Rxc2 $19 {and Black stays clearly on top.} 26. Bxc2 Rxc2) 26. c3 {[%emt 0:03:36]} Bc6 {[%emt 0:02:53]} 27. Qxd6 {[%emt 0:02:53]} Nxd6 {[%emt 0:01:29]} 28. Rf2 {[%emt 0:04:28]} (28. Ra1 $15) 28... Be8 {[%emt 0:00:37]} (28... b5 $142 29. axb5 axb5) 29. Nf4 $17 {[%emt 0:01:52]} Nc4 {[%emt 0:04:22]} 30. Re2 {[%emt 0:02:12]} Rb8 {[%emt 0:02:24]} 31. Rde1 {[%emt 0:03:46][%cal Of4d5] Threatens to win with Nxd5!} Bd7 {[%emt 0:03:18][%cal Be8d7,Bd7c8,Bc8a6][%mdl 32]} 32. Nd3 {[%emt 0:00:44]} Rbc8 {[%emt 0:03:28]} ({Better is} 32... Na5 $15 33. Bc2 Nc4) 33. Bd1 {[%emt 0:01:52] [#]} (33. Ra1 $11) 33... a5 {[%emt 0:04:00]} ({Black should play} 33... b5 $1 $17 34. axb5 Bxb5) 34. g3 {[%emt 0:01:12]} Rb8 {[%emt 0:00:18]} (34... b5 $17 35. axb5 Bxb5) 35. Bb3 $15 {[%emt 0:01:15]} Bc8 {[%emt 0:00:43]} 36. f4 {[%emt 0:01:15]} Ba6 {[%emt 0:00:34][%cal Oc4b2] Hoping for ...Nxb2!} 37. Rf2 {[%emt 0:00:26][%mdl 8192] [#]} (37. Ngf2 $15) 37... Nxb2 $1 $19 {[%emt 0:03:36][%mdl 512]} 38. Nxb2 {[%emt 0:00:13] Black must now prevent Re3.} (38. Rxb2 Bxd3) 38... Rxc3 {[%emt 0:00:05]} 39. Re3 {[%emt 0:01:06]} Rc1+ {[%emt 0:00:10]} ({Worse is} 39... Bxd4 40. Rxc3 Bxc3 41. Kg2 $15) 40. Kg2 {[%emt 0:00:00]} Bxd4 {[%emt 0:00:00] A strong pair of Bishops.} 41. Rd2 {[%emt 0:15:31]} (41. Bd1 $142) 41... Bxe3 {[%emt 0:00:48]} 42. Nxe3 {[%emt 0:00:08]} Rc3 {[%emt 0:00:00][%csl LRb3,LRe3] Weighted Error Value: White=0.46/Black=0.14 (very precise)} 0-1

[Event "Croatian Team Cup Final 2022"]
[Site "Vodice"]
[Date "2022.05.19"]
[Round "2.21"]
[White "Golubovic, Boris"]
[Black "Jovanovic, Zoran"]
[Result "1/2-1/2"]
[ECO "C41"]
[WhiteElo "2360"]
[BlackElo "2523"]
[Annotator "TA"]
[PlyCount "34"]
[EventDate "2022.05.18"]
[EventType "team-tourn"]
[EventCountry "CRO"]
[SourceTitle "playchess.com"]
[Source "ChessBase"]
[SourceQuality "1"]
[TimeControl "40/5400+30:1800+30"]

{[%evp 17,21,30,64,0,32,45]} 1. e4 {[%emt 0:02:34]} d6 {[%emt 0:00:12]} 2. d4 {[%emt 0:00:09]} Nf6 {[%emt 0:00:10]} 3. Nc3 {[%emt 0:00:07]} e5 {[%emt 0:00:34]} 4. Nf3 {[%emt 0:00:11]} Nbd7 {[%emt 0:01:08]} 5. Bc4 {[%emt 0:01:47]} Be7 {[%emt 0:00:51]} 6. O-O {[%emt 0:00:28]} O-O {[%emt 0:01:32]} 7. Re1 {[%emt 0:00:33]} c6 {[%emt 0:02:19]} 8. a4 {[%emt 0:00:45]} a5 {[%emt 0:00:56]} 9. h3 {[%emt 0:00:58]} h6 {[%emt 0:00:08]} 10. b3 {[%emt 0:05:08] White is much more active. The black rooks are badly placed. C41: Philidor Defence.} ({White should try} 10. Be3 $14) 10... Qc7 {[%emt 0:06:41]} 11. Bb2 {[%emt 0:02:46] [#]} {Predecessor:} Re8 $146 12. Qd2 Nf8 13. d5 Ng6 14. Rad1 Nf4 15. Kh2 c5 16. Ng1 g5 17. g3 Ng6 {0-1 (51) Vasquez Schroder,R (2500)-Krishna,C (2439) Chess.com INT 2022} 1/2-1/2